[Event "*** Titled Tuesday Blitz"]
[Site "Chess.com"]
[Date "2021.03.09"]
[Round "11"]
[White "woodhy"]
[Black "poneis_malditos"]
[Result "1-0"]
[WhiteElo "2453"]
[BlackElo "2338"]
[TimeControl "180+1"]
[EndTime "12:09:02 PST"]
[Termination "woodhy won by resignation"]

1. e4 {[%clk 0:03:00.9]} 1... c5 {[%clk 0:03:00]} 2. Nf3 {[%clk 0:03:00.5]} 2...
e6 {[%clk 0:03:00.5]} 3. d4 {[%clk 0:03:00.4]} 3... cxd4 {[%clk 0:03:01.4]} 4.
Nxd4 {[%clk 0:03:01]} 4... a6 {[%clk 0:03:02]} 5. c4 {[%clk 0:03:00.8]} 5... Nf6
{[%clk 0:02:59]} 6. Nc3 {[%clk 0:03:00.8]} 6... Qc7 {[%clk 0:02:59.6]} 7. a3
{[%clk 0:03:00.8]} 7... Nxe4 {[%clk 0:02:59.4]} 8. Nxe4 {[%clk 0:02:51]} 8...
Qe5 {[%clk 0:02:59.9]} 9. Bd3 {[%clk 0:01:36.3]} 9... Qxd4 {[%clk 0:02:57.7]}
10. O-O {[%clk 0:01:36.2]} 10... f5 {[%clk 0:02:48.6]} 11. Be3 {[%clk
0:01:30.2]} 11... Qe5 {[%clk 0:02:47]} 12. Nc3 {[%clk 0:01:25]} 12... Nc6 {[%clk
0:02:44.8]} 13. Re1 {[%clk 0:01:21.8]} 13... Qc7 {[%clk 0:02:45.2]} 14. c5
{[%clk 0:01:21.4]} 14... Be7 {[%clk 0:02:41.8]} 15. Qh5+ {[%clk 0:01:20.3]}
15... g6 {[%clk 0:02:41]} 16. Qh6 {[%clk 0:01:20.4]} 16... Bf8 {[%clk
0:02:31.5]} 17. Qh4 {[%clk 0:01:14.1]} 17... Bg7 {[%clk 0:02:31.2]} 18. Bf4
{[%clk 0:01:11.6]} 18... Qd8 {[%clk 0:02:26.9]} 19. Bg5 {[%clk 0:01:08.8]} 19...
Qc7 {[%clk 0:02:24]} 20. Nd5 {[%clk 0:01:06.3]} 20... Qa5 {[%clk 0:02:18]} 21.
b4 {[%clk 0:01:04.8]} 21... Qa4 {[%clk 0:02:16.3]} 22. Nb6 {[%clk 0:01:02.7]}
22... Qb3 {[%clk 0:02:14.1]} 23. Bc4 {[%clk 0:00:58.6]} 23... Qc3 {[%clk
0:02:09.3]} 24. Rac1 {[%clk 0:00:55.2]} 24... Qxa3 {[%clk 0:02:07.4]} 25. Nxa8
{[%clk 0:00:54.8]} 25... O-O {[%clk 0:02:06]} 26. Nb6 {[%clk 0:00:50.1]} 26...
Qxb4 {[%clk 0:02:05.8]} 27. Nxc8 {[%clk 0:00:49.7]} 27... Rxc8 {[%clk
0:02:05.1]} 28. Bf6 {[%clk 0:00:48.2]} 28... Rf8 {[%clk 0:01:37.6]} 29. Bxg7
{[%clk 0:00:47.3]} 29... Kxg7 {[%clk 0:01:38.5]} 30. Red1 {[%clk 0:00:41.3]}
30... Rf7 {[%clk 0:01:37.3]} 31. h3 {[%clk 0:00:35.8]} 31... Qb2 {[%clk
0:01:27.6]} 32. Rb1 {[%clk 0:00:33.4]} 32... Qc3 {[%clk 0:01:20]} 33. Rxb7
{[%clk 0:00:28.7]} 33... Ne5 {[%clk 0:01:18.5]} 34. Qd4 {[%clk 0:00:21.7]} 34...
Qxd4 {[%clk 0:01:03.2]} 35. Rxd4 {[%clk 0:00:22.6]} 35... Kf6 {[%clk 0:01:02.6]}
36. f4 {[%clk 0:00:20]} 36... Nxc4 {[%clk 0:01:01.4]} 37. Rxc4 {[%clk
0:00:20.1]} 37... g5 {[%clk 0:01:01.7]} 38. fxg5+ {[%clk 0:00:19.6]} 38... Kxg5
{[%clk 0:01:02.6]} 39. c6 {[%clk 0:00:20.5]} 1-0

[Event "*** Titled Tuesday Blitz"]
[Site "Chess.com"]
[Date "2021.03.09"]
[Round "11"]
[White "Fortitudine"]
[Black "Magila31"]
[Result "0-1"]
[WhiteElo "2285"]
[BlackElo "2237"]
[TimeControl "180+1"]
[EndTime "12:09:02 PST"]
[Termination "Magila31 won on time"]

1. c4 {[%clk 0:03:00.9]} 1... Nf6 {[%clk 0:02:58]} 2. g3 {[%clk 0:03:00.3]} 2...
g6 {[%clk 0:02:56.8]} 3. Nc3 {[%clk 0:03:00.1]} 3... Bg7 {[%clk 0:02:56.5]} 4.
e4 {[%clk 0:03:00.4]} 4... d6 {[%clk 0:02:55.5]} 5. d3 {[%clk 0:03:00.6]} 5...
O-O {[%clk 0:02:54.8]} 6. Bg2 {[%clk 0:03:00.8]} 6... c5 {[%clk 0:02:50.6]} 7.
Nge2 {[%clk 0:03:00.9]} 7... Nc6 {[%clk 0:02:49.9]} 8. O-O {[%clk 0:03:00.7]}
8... Bd7 {[%clk 0:02:44.7]} 9. h3 {[%clk 0:02:59.2]} 9... Rb8 {[%clk 0:02:37.8]}
10. Be3 {[%clk 0:02:52.9]} 10... a6 {[%clk 0:02:32]} 11. a4 {[%clk 0:02:35.5]}
11... e5 {[%clk 0:02:05.9]} 12. f4 {[%clk 0:02:31.4]} 12... Nd4 {[%clk
0:02:00.5]} 13. Nd5 {[%clk 0:01:28.1]} 13... Nxd5 {[%clk 0:01:58.9]} 14. exd5
{[%clk 0:01:19.1]} 14... b5 {[%clk 0:01:51.1]} 15. cxb5 {[%clk 0:00:59]} 15...
axb5 {[%clk 0:01:50.8]} 16. a5 {[%clk 0:00:59.5]} 16... b4 {[%clk 0:01:47.1]}
17. fxe5 {[%clk 0:00:51.8]} 17... Bxe5 {[%clk 0:01:43]} 18. Nxd4 {[%clk
0:00:38.1]} 18... cxd4 {[%clk 0:01:39.4]} 19. Bf4 {[%clk 0:00:32.1]} 19... Ra8
{[%clk 0:01:33.9]} 20. a6 {[%clk 0:00:20.3]} 20... Bb5 {[%clk 0:01:32.8]} 21.
Bxe5 {[%clk 0:00:20.4]} 21... dxe5 {[%clk 0:01:32.6]} 22. d6 {[%clk 0:00:20.6]}
22... Rxa6 {[%clk 0:01:32.6]} 23. Rxa6 {[%clk 0:00:20.8]} 23... Bxa6 {[%clk
0:01:32.5]} 24. Re1 {[%clk 0:00:14.8]} 24... Qxd6 {[%clk 0:01:31.6]} 25. Qa4
{[%clk 0:00:11.4]} 25... Bxd3 {[%clk 0:01:29.8]} 26. Qa5 {[%clk 0:00:10.5]}
26... e4 {[%clk 0:01:27.4]} 27. Kh2 {[%clk 0:00:07.4]} 27... h5 {[%clk
0:01:21.3]} 28. b3 {[%clk 0:00:05.3]} 28... h4 {[%clk 0:01:19.3]} 29. Qg5 {[%clk
0:00:03.8]} 29... Qxg3+ {[%clk 0:01:18.2]} 30. Qxg3 {[%clk 0:00:04.7]} 30...
hxg3+ {[%clk 0:01:18.5]} 31. Kxg3 {[%clk 0:00:05.6]} 31... f5 {[%clk 0:01:12.8]}
32. Kf4 {[%clk 0:00:06]} 32... Kg7 {[%clk 0:01:06.4]} 33. Rc1 {[%clk 0:00:05]}
33... Rf7 {[%clk 0:01:03.2]} 0-1

[Event "*** Titled Tuesday Blitz"]
[Site "Chess.com"]
[Date "2021.03.09"]
[Round "11"]
[White "Sychev_Klementy"]
[Black "Bastiandash"]
[Result "1-0"]
[WhiteElo "2838"]
[BlackElo "2463"]
[TimeControl "180+1"]
[EndTime "12:09:10 PST"]
[Termination "Sychev_Klementy won on time"]

1. e4 {[%clk 0:03:00.9]} 1... c5 {[%clk 0:02:57.2]} 2. d4 {[%clk 0:02:59.5]}
2... cxd4 {[%clk 0:02:55.3]} 3. c3 {[%clk 0:03:00.2]} 3... Nf6 {[%clk
0:02:55.8]} 4. e5 {[%clk 0:03:00]} 4... Nd5 {[%clk 0:02:56.3]} 5. Nf3 {[%clk
0:02:59.6]} 5... e6 {[%clk 0:02:54.4]} 6. cxd4 {[%clk 0:02:59.5]} 6... d6 {[%clk
0:02:54.6]} 7. Bc4 {[%clk 0:02:58.9]} 7... Nc7 {[%clk 0:02:47.9]} 8. O-O {[%clk
0:02:49.1]} 8... Nc6 {[%clk 0:02:43.1]} 9. Nc3 {[%clk 0:02:43.9]} 9... a6 {[%clk
0:02:31.7]} 10. Re1 {[%clk 0:02:42.1]} 10... Be7 {[%clk 0:02:25.5]} 11. exd6
{[%clk 0:02:42.4]} 11... Qxd6 {[%clk 0:02:26.4]} 12. Ne4 {[%clk 0:02:40.7]}
12... Qd8 {[%clk 0:02:23.2]} 13. h4 {[%clk 0:02:32.8]} 13... b5 {[%clk
0:02:15.3]} 14. Bb3 {[%clk 0:02:32.2]} 14... Bb7 {[%clk 0:01:52.3]} 15. Bg5
{[%clk 0:02:27.8]} 15... O-O {[%clk 0:01:30.9]} 16. Nc5 {[%clk 0:02:26.7]} 16...
Bc8 {[%clk 0:01:26.5]} 17. Rc1 {[%clk 0:02:26.7]} 17... Na5 {[%clk 0:01:21.9]}
18. Bc2 {[%clk 0:02:19]} 18... h6 {[%clk 0:01:21.2]} 19. Qd3 {[%clk 0:02:14.8]}
19... f5 {[%clk 0:01:15.8]} 20. Bf4 {[%clk 0:02:12.1]} 20... Nd5 {[%clk
0:01:11.6]} 21. Be5 {[%clk 0:02:11]} 21... Nb4 {[%clk 0:01:08.7]} 22. Qe2 {[%clk
0:02:09.4]} 22... Nxc2 {[%clk 0:01:08.8]} 23. Rxc2 {[%clk 0:02:09.9]} 23... Nc6
{[%clk 0:01:07.5]} 24. Nxe6 {[%clk 0:02:08.8]} 24... Bxe6 {[%clk 0:01:08.4]} 25.
Rxc6 {[%clk 0:02:09]} 25... Bd5 {[%clk 0:01:08.9]} 26. Rc3 {[%clk 0:02:05.4]}
26... Bxh4 {[%clk 0:01:07.4]} 27. Nxh4 {[%clk 0:02:04.4]} 27... Qxh4 {[%clk
0:01:07.5]} 28. Bxg7 {[%clk 0:02:03.4]} 28... Rfe8 {[%clk 0:00:45.3]} 29. Be5
{[%clk 0:01:59.3]} 29... f4 {[%clk 0:00:45.6]} 30. Rc7 {[%clk 0:01:50.3]} 30...
Re7 {[%clk 0:00:37.8]} 31. Rxe7 {[%clk 0:01:44.1]} 31... Qxe7 {[%clk 0:00:38.7]}
32. Rc1 {[%clk 0:01:27.5]} 32... f3 {[%clk 0:00:27.1]} 33. Qe3 {[%clk
0:01:25.3]} 33... Qg5 {[%clk 0:00:19.5]} 34. Qxg5+ {[%clk 0:01:20.3]} 34... hxg5
{[%clk 0:00:20.4]} 35. gxf3 {[%clk 0:01:15.3]} 35... Bxf3 {[%clk 0:00:21.3]} 36.
Rc7 {[%clk 0:01:14.4]} 36... g4 {[%clk 0:00:19.6]} 37. Kh2 {[%clk 0:01:14.1]}
37... Rd8 {[%clk 0:00:14.1]} 38. Kg3 {[%clk 0:01:13.8]} 38... Kf8 {[%clk
0:00:12.3]} 39. Ra7 {[%clk 0:01:13.2]} 39... Ke8 {[%clk 0:00:04.6]} 40. Kf4
{[%clk 0:01:11.9]} 40... Ra8 {[%clk 0:00:03.1]} 41. Rh7 {[%clk 0:01:10.6]} 1-0

[Event "*** Titled Tuesday Blitz"]
[Site "Chess.com"]
[Date "2021.03.09"]
[Round "11"]
[White "elcandado"]
[Black "profofchess"]
[Result "1-0"]
[WhiteElo "2654"]
[BlackElo "2493"]
[TimeControl "180+1"]
[EndTime "12:09:17 PST"]
[Termination "elcandado won by resignation"]

1. d4 {[%clk 0:03:00.9]} 1... Nf6 {[%clk 0:02:59.9]} 2. Bf4 {[%clk 0:03:00.6]}
2... c5 {[%clk 0:02:59.4]} 3. c3 {[%clk 0:03:00.1]} 3... b6 {[%clk 0:02:37.4]}
4. e3 {[%clk 0:02:59.3]} 4... Bb7 {[%clk 0:02:37.4]} 5. h3 {[%clk 0:02:59.3]}
5... e6 {[%clk 0:02:35.6]} 6. Nf3 {[%clk 0:02:59.5]} 6... Be7 {[%clk 0:02:35.1]}
7. Nbd2 {[%clk 0:02:58.7]} 7... O-O {[%clk 0:02:34.2]} 8. Bd3 {[%clk 0:02:57.7]}
8... d6 {[%clk 0:02:33.5]} 9. Qe2 {[%clk 0:02:57.1]} 9... a6 {[%clk 0:02:33.1]}
10. a4 {[%clk 0:02:55.7]} 10... Nbd7 {[%clk 0:02:32.8]} 11. Bh2 {[%clk
0:02:54.9]} 11... Qc7 {[%clk 0:02:32.6]} 12. O-O {[%clk 0:02:54.9]} 12... Rac8
{[%clk 0:02:22.9]} 13. Bxa6 {[%clk 0:02:51.8]} 13... Bxa6 {[%clk 0:02:12.6]} 14.
Qxa6 {[%clk 0:02:52.7]} 14... c4 {[%clk 0:02:13.2]} 15. Qb5 {[%clk 0:02:27.7]}
15... Rfd8 {[%clk 0:01:38]} 16. Rfb1 {[%clk 0:02:23.9]} 16... h6 {[%clk
0:01:11.1]} 17. b3 {[%clk 0:02:19.1]} 17... Nd5 {[%clk 0:01:11.3]} 18. Rc1
{[%clk 0:01:48.8]} 18... cxb3 {[%clk 0:01:11.2]} 19. Qxb3 {[%clk 0:01:48]} 19...
Nxc3 {[%clk 0:01:06.2]} 20. Kh1 {[%clk 0:01:42.8]} 20... Nf6 {[%clk 0:00:58.3]}
21. Ra3 {[%clk 0:01:28.9]} 21... Nce4 {[%clk 0:00:03]} 22. Rxc7 {[%clk 0:01:23]}
22... Rxc7 {[%clk 0:00:03.4]} 23. Ra1 {[%clk 0:01:17.3]} 23... Nxf2+ {[%clk
0:00:02.7]} 24. Kg1 {[%clk 0:01:16.3]} 24... N6e4 {[%clk 0:00:03.2]} 25. Qxb6
{[%clk 0:01:06.4]} 25... Rdc8 {[%clk 0:00:03.5]} 26. Rf1 {[%clk 0:01:03.2]}
26... Rc1 {[%clk 0:00:03.2]} 27. a5 {[%clk 0:00:47.7]} 27... Nd1 {[%clk
0:00:03]} 28. Nxe4 {[%clk 0:00:45.1]} 28... Nxe3 {[%clk 0:00:03.3]} 29. Rxc1
{[%clk 0:00:38.3]} 29... Rxc1+ {[%clk 0:00:04.2]} 30. Kf2 {[%clk 0:00:37.9]}
30... Nd5 {[%clk 0:00:04.9]} 31. Qb2 {[%clk 0:00:34.3]} 1-0

[Event "*** Titled Tuesday Blitz"]
[Site "Chess.com"]
[Date "2021.03.09"]
[Round "11"]
[White "TST2014"]
[Black "zverr1"]
[Result "1-0"]
[WhiteElo "2600"]
[BlackElo "2441"]
[TimeControl "180+1"]
[EndTime "12:09:18 PST"]
[Termination "TST2014 won by resignation"]

1. d4 {[%clk 0:03:00.9]} 1... Nf6 {[%clk 0:02:57.6]} 2. c4 {[%clk 0:03:00.6]}
2... g6 {[%clk 0:02:57.7]} 3. Nc3 {[%clk 0:03:00.2]} 3... Bg7 {[%clk 0:02:58.2]}
4. e4 {[%clk 0:03:00.3]} 4... d6 {[%clk 0:02:59.1]} 5. Nf3 {[%clk 0:03:00.3]}
5... O-O {[%clk 0:02:59]} 6. Be2 {[%clk 0:03:00.6]} 6... e5 {[%clk 0:02:58.5]}
7. O-O {[%clk 0:03:00.4]} 7... Nc6 {[%clk 0:02:57.9]} 8. d5 {[%clk 0:03:00.5]}
8... Ne7 {[%clk 0:02:57.9]} 9. b4 {[%clk 0:03:00.2]} 9... Nh5 {[%clk 0:02:56.1]}
10. g3 {[%clk 0:02:59.6]} 10... f5 {[%clk 0:02:51.6]} 11. Ng5 {[%clk 0:02:59.2]}
11... Nf6 {[%clk 0:02:50.6]} 12. Bf3 {[%clk 0:02:58.8]} 12... Rb8 {[%clk
0:02:49.7]} 13. b5 {[%clk 0:02:54.5]} 13... b6 {[%clk 0:02:43.5]} 14. a4 {[%clk
0:02:51.3]} 14... h6 {[%clk 0:02:30.6]} 15. Ne6 {[%clk 0:02:50.4]} 15... Bxe6
{[%clk 0:02:31.1]} 16. dxe6 {[%clk 0:02:51.3]} 16... Qc8 {[%clk 0:02:25.3]} 17.
exf5 {[%clk 0:02:46]} 17... gxf5 {[%clk 0:02:06.5]} 18. Bd5 {[%clk 0:02:44.8]}
18... Qe8 {[%clk 0:01:43.7]} 19. a5 {[%clk 0:02:36.2]} 19... Ng4 {[%clk
0:01:40.6]} 20. h3 {[%clk 0:02:32.4]} 20... Nf6 {[%clk 0:01:33.2]} 21. axb6
{[%clk 0:02:31.9]} 21... axb6 {[%clk 0:01:32.9]} 22. Ra7 {[%clk 0:02:31.7]}
22... Rc8 {[%clk 0:01:33.2]} 23. Bb7 {[%clk 0:02:20.9]} 23... Rb8 {[%clk
0:01:16.7]} 24. Nd5 {[%clk 0:02:17.3]} 24... Nfxd5 {[%clk 0:01:07.5]} 25. Bxd5
{[%clk 0:02:16]} 25... Rc8 {[%clk 0:00:59.6]} 26. Kh2 {[%clk 0:01:52.3]} 26...
Qg6 {[%clk 0:00:59.2]} 27. Bb2 {[%clk 0:01:40.4]} 27... Kh7 {[%clk 0:00:48.9]}
28. Qc2 {[%clk 0:01:31.1]} 28... h5 {[%clk 0:00:47.5]} 29. h4 {[%clk 0:01:28.2]}
29... e4 {[%clk 0:00:45.8]} 30. Bxg7 {[%clk 0:01:23.7]} 30... Qxg7 {[%clk
0:00:46.7]} 31. f3 {[%clk 0:01:23.8]} 31... Nxd5 {[%clk 0:00:40]} 32. cxd5
{[%clk 0:01:23]} 32... f4 {[%clk 0:00:30.7]} 33. Qxe4+ {[%clk 0:01:21.9]} 33...
Kh8 {[%clk 0:00:31.2]} 34. Rg1 {[%clk 0:01:12.9]} 34... Qb2+ {[%clk 0:00:21.1]}
35. Kh3 {[%clk 0:01:10.2]} 35... Qf2 {[%clk 0:00:18.3]} 36. Rg2 {[%clk
0:01:03.5]} 36... Qf1 {[%clk 0:00:18.3]} 37. Qd4+ {[%clk 0:00:59.8]} 37... Kh7
{[%clk 0:00:17.9]} 38. Qf2 {[%clk 0:00:57.1]} 38... fxg3 {[%clk 0:00:16.9]} 39.
Qxf1 {[%clk 0:00:56.5]} 39... Rf5 {[%clk 0:00:15.1]} 40. Qd3 {[%clk 0:00:55]}
1-0

[Event "*** Titled Tuesday Blitz"]
[Site "Chess.com"]
[Date "2021.03.09"]
[Round "11"]
[White "andriipalchuk"]
[Black "Blitzking642"]
[Result "1-0"]
[WhiteElo "2585"]
[BlackElo "2425"]
[TimeControl "180+1"]
[EndTime "12:09:19 PST"]
[Termination "andriipalchuk won by resignation"]

1. d4 {[%clk 0:03:00.9]} 1... Nf6 {[%clk 0:02:59.7]} 2. c4 {[%clk 0:02:59.5]}
2... c5 {[%clk 0:02:59.9]} 3. d5 {[%clk 0:02:59.5]} 3... b5 {[%clk 0:03:00]} 4.
cxb5 {[%clk 0:03:00.1]} 4... a6 {[%clk 0:03:00.5]} 5. bxa6 {[%clk 0:03:00.8]}
5... g6 {[%clk 0:03:00.6]} 6. Nc3 {[%clk 0:03:01.6]} 6... Bxa6 {[%clk
0:03:00.9]} 7. e4 {[%clk 0:03:02.2]} 7... Bxf1 {[%clk 0:03:01.4]} 8. Kxf1 {[%clk
0:03:02.9]} 8... d6 {[%clk 0:03:02.1]} 9. g3 {[%clk 0:03:03.4]} 9... Bg7 {[%clk
0:03:02.7]} 10. Kg2 {[%clk 0:03:04.1]} 10... O-O {[%clk 0:03:03]} 11. Nf3 {[%clk
0:03:04.8]} 11... Qb6 {[%clk 0:03:03.6]} 12. a4 {[%clk 0:03:05.5]} 12... Na6
{[%clk 0:03:03.5]} 13. Nd2 {[%clk 0:03:02.7]} 13... Nc7 {[%clk 0:03:00.5]} 14.
Ra3 {[%clk 0:02:58.5]} 14... Rfb8 {[%clk 0:03:00.1]} 15. Qc2 {[%clk 0:02:50.4]}
15... Qa6 {[%clk 0:02:59.4]} 16. b3 {[%clk 0:02:45.7]} 16... e6 {[%clk
0:02:59.1]} 17. dxe6 {[%clk 0:02:02.7]} 17... Nxe6 {[%clk 0:02:58.8]} 18. Nb5
{[%clk 0:01:50.5]} 18... Ng4 {[%clk 0:02:04.6]} 19. Nc4 {[%clk 0:01:42.7]} 19...
Nd4 {[%clk 0:02:04.2]} 20. Nxd4 {[%clk 0:01:42.2]} 20... Bxd4 {[%clk 0:02:05]}
21. Rf1 {[%clk 0:01:27.9]} 21... Qc6 {[%clk 0:02:01.9]} 22. f3 {[%clk
0:01:22.6]} 22... Ne5 {[%clk 0:01:45.9]} 23. Rd1 {[%clk 0:01:18.2]} 23... Nxc4
{[%clk 0:01:42.2]} 24. Qxc4 {[%clk 0:01:18.6]} 24... Rb4 {[%clk 0:01:41.6]} 25.
Qc2 {[%clk 0:01:17.4]} 25... Rab8 {[%clk 0:01:33.3]} 26. Bd2 {[%clk 0:01:08.2]}
26... R4b7 {[%clk 0:01:28.5]} 27. Bf4 {[%clk 0:01:05.1]} 27... Rb4 {[%clk
0:01:25.6]} 28. Bd2 {[%clk 0:00:56.8]} 28... R4b7 {[%clk 0:01:25.2]} 29. Bc3
{[%clk 0:00:56.7]} 29... Bxc3 {[%clk 0:01:18]} 30. Qxc3 {[%clk 0:00:57.6]} 30...
Rb4 {[%clk 0:01:17.3]} 31. a5 {[%clk 0:00:57.6]} 31... c4 {[%clk 0:01:01.5]} 32.
Rc1 {[%clk 0:00:34]} 32... Qc5 {[%clk 0:00:47.2]} 33. a6 {[%clk 0:00:28.8]}
33... Rxb3 {[%clk 0:00:40.7]} 34. Rxb3 {[%clk 0:00:28.6]} 34... Rxb3 {[%clk
0:00:34]} 35. Qxb3 {[%clk 0:00:27.2]} 1-0

[Event "*** Titled Tuesday Blitz"]
[Site "Chess.com"]
[Date "2021.03.09"]
[Round "11"]
[White "mary-sanna"]
[Black "LuisFSiles"]
[Result "0-1"]
[WhiteElo "2067"]
[BlackElo "2277"]
[TimeControl "180+1"]
[EndTime "12:09:22 PST"]
[Termination "LuisFSiles won by checkmate"]

1. d4 {[%clk 0:03:00.9]} 1... Nf6 {[%clk 0:02:59.5]} 2. Bf4 {[%clk 0:03:00.7]}
2... g6 {[%clk 0:02:58.7]} 3. Nc3 {[%clk 0:02:59.8]} 3... d5 {[%clk 0:02:58.3]}
4. e3 {[%clk 0:02:59.5]} 4... Bg7 {[%clk 0:02:58]} 5. h4 {[%clk 0:02:57.9]} 5...
h5 {[%clk 0:02:57.1]} 6. Nf3 {[%clk 0:02:57.5]} 6... Bg4 {[%clk 0:02:57]} 7. Be2
{[%clk 0:02:50.7]} 7... Bxf3 {[%clk 0:02:56.7]} 8. Bxf3 {[%clk 0:02:50.2]} 8...
c6 {[%clk 0:02:56.8]} 9. Qe2 {[%clk 0:02:31.1]} 9... Nbd7 {[%clk 0:02:43.6]} 10.
a4 {[%clk 0:02:23.9]} 10... O-O {[%clk 0:02:34.1]} 11. g4 {[%clk 0:02:21]} 11...
hxg4 {[%clk 0:02:31.3]} 12. Bxg4 {[%clk 0:02:21.9]} 12... Nxg4 {[%clk
0:02:31.5]} 13. Qxg4 {[%clk 0:02:21.7]} 13... Nf6 {[%clk 0:02:31.8]} 14. Qh3
{[%clk 0:02:16.8]} 14... Nh5 {[%clk 0:02:28.4]} 15. Bg5 {[%clk 0:02:14.5]} 15...
Qd6 {[%clk 0:02:21.2]} 16. Qh2 {[%clk 0:01:32.9]} 16... e5 {[%clk 0:02:11.8]}
17. dxe5 {[%clk 0:01:25.5]} 17... Bxe5 {[%clk 0:02:09.8]} 18. f4 {[%clk
0:01:20.5]} 18... Bg7 {[%clk 0:01:41.1]} 19. f5 {[%clk 0:01:07.7]} 19... Be5
{[%clk 0:01:40.9]} 20. Qg1 {[%clk 0:00:54.1]} 20... Bg3+ {[%clk 0:01:33.8]} 21.
Kd2 {[%clk 0:00:51.5]} 21... c5 {[%clk 0:01:28.9]} 22. Nb5 {[%clk 0:00:19.3]}
22... Qe5 {[%clk 0:01:24.3]} 23. Bh6 {[%clk 0:00:17.7]} 23... Rfe8 {[%clk
0:01:17.4]} 24. fxg6 {[%clk 0:00:17.5]} 24... fxg6 {[%clk 0:01:18.2]} 25. Rh3
{[%clk 0:00:17.6]} 25... d4 {[%clk 0:01:11.7]} 26. Rxg3 {[%clk 0:00:14.4]} 26...
Nxg3 {[%clk 0:01:07.6]} 27. Bf4 {[%clk 0:00:11.5]} 27... Ne4+ {[%clk 0:01:02.7]}
28. Kc1 {[%clk 0:00:10.8]} 28... Qf5 {[%clk 0:01:01.7]} 29. h5 {[%clk 0:00:09]}
29... dxe3 {[%clk 0:00:59.5]} 30. Bxe3 {[%clk 0:00:08.7]} 30... g5 {[%clk
0:00:50.5]} 31. Nc7 {[%clk 0:00:07.7]} 31... Rad8 {[%clk 0:00:44.8]} 32. Nxe8
{[%clk 0:00:07.8]} 32... Rxe8 {[%clk 0:00:45.7]} 33. h6 {[%clk 0:00:07.5]} 33...
Kh7 {[%clk 0:00:44.1]} 34. Ra3 {[%clk 0:00:07.4]} 34... Rf8 {[%clk 0:00:40.8]}
35. Bxc5 {[%clk 0:00:07.4]} 35... Qf1+ {[%clk 0:00:39.2]} 36. Qxf1 {[%clk
0:00:07]} 36... Rxf1# {[%clk 0:00:40.1]} 0-1

[Event "*** Titled Tuesday Blitz"]
[Site "Chess.com"]
[Date "2021.03.09"]
[Round "11"]
[White "AniJak"]
[Black "lacafi"]
[Result "1-0"]
[WhiteElo "2316"]
[BlackElo "2162"]
[TimeControl "180+1"]
[EndTime "12:09:27 PST"]
[Termination "AniJak won by checkmate"]

1. e4 {[%clk 0:03:00.9]} 1... c6 {[%clk 0:03:00.2]} 2. d4 {[%clk 0:03:00.5]}
2... d5 {[%clk 0:03:00.6]} 3. e5 {[%clk 0:03:00.9]} 3... Bf5 {[%clk 0:03:00.5]}
4. Nf3 {[%clk 0:03:00.7]} 4... e6 {[%clk 0:03:00.6]} 5. Be2 {[%clk 0:03:01.2]}
5... Ne7 {[%clk 0:03:00.9]} 6. O-O {[%clk 0:03:01.4]} 6... Nd7 {[%clk
0:03:01.4]} 7. Nbd2 {[%clk 0:03:00.4]} 7... c5 {[%clk 0:03:01.7]} 8. c3 {[%clk
0:03:00.4]} 8... Nc6 {[%clk 0:03:01.4]} 9. Re1 {[%clk 0:02:43.8]} 9... Be7
{[%clk 0:02:56.2]} 10. Nf1 {[%clk 0:02:43.2]} 10... h6 {[%clk 0:02:50.4]} 11.
Ng3 {[%clk 0:02:40.4]} 11... Bg6 {[%clk 0:02:48.8]} 12. Be3 {[%clk 0:02:39.1]}
12... O-O {[%clk 0:02:46.9]} 13. h3 {[%clk 0:02:17.5]} 13... a6 {[%clk
0:02:41.1]} 14. Nh2 {[%clk 0:02:16.3]} 14... b5 {[%clk 0:02:40.3]} 15. Nh5
{[%clk 0:02:08.6]} 15... b4 {[%clk 0:02:32.4]} 16. dxc5 {[%clk 0:02:01]} 16...
bxc3 {[%clk 0:02:31.5]} 17. bxc3 {[%clk 0:01:53.1]} 17... Ncxe5 {[%clk
0:02:17.8]} 18. Nf4 {[%clk 0:01:41.7]} 18... Bh7 {[%clk 0:02:12]} 19. Ng4 {[%clk
0:01:22.6]} 19... Nxg4 {[%clk 0:01:51.1]} 20. Bxg4 {[%clk 0:01:23.5]} 20... Nxc5
{[%clk 0:01:33.2]} 21. Qe2 {[%clk 0:01:02.2]} 21... Ne4 {[%clk 0:01:08.2]} 22.
Rac1 {[%clk 0:00:55.3]} 22... Bf6 {[%clk 0:00:54.3]} 23. c4 {[%clk 0:00:55.2]}
23... dxc4 {[%clk 0:00:51.6]} 24. Rxc4 {[%clk 0:00:53.2]} 24... Nd6 {[%clk
0:00:38.6]} 25. Rcc1 {[%clk 0:00:50.2]} 25... Qa5 {[%clk 0:00:35.9]} 26. Bc5
{[%clk 0:00:44.8]} 26... Rfd8 {[%clk 0:00:32.6]} 27. Bxe6 {[%clk 0:00:34.1]}
27... fxe6 {[%clk 0:00:13.6]} 28. Nxe6 {[%clk 0:00:34.3]} 28... Rd7 {[%clk
0:00:12.4]} 29. Red1 {[%clk 0:00:33.6]} 29... Be7 {[%clk 0:00:07.9]} 30. Qg4
{[%clk 0:00:29.7]} 30... Ne8 {[%clk 0:00:03.7]} 31. Rxd7 {[%clk 0:00:27.9]}
31... Nf6 {[%clk 0:00:01.6]} 32. Qxg7# {[%clk 0:00:25.7]} 1-0